[Event "*** Titled Tuesday 3|2 Blitz"]
[Site "Chess.com"]
[Date "2016.04.05"]
[Round "1"]
[White "KuzubovYuriy"]
[Black "GM_Levan_Pantsulaia"]
[Result "0-1"]
[WhiteElo "2619"]
[BlackElo "2412"]
[TimeControl "180+2"]
[EndTime "11:03:56 PDT"]
[Termination "GM_Levan_Pantsulaia won by resignation"]

1. d4 {[%clk 0:03:01.9]} 1... Nf6 {[%clk 0:02:58.7]} 2. c4 {[%clk 0:03:02.8]}
2... c5 {[%clk 0:02:58]} 3. d5 {[%clk 0:03:03.8]} 3... g6 {[%clk 0:02:58.7]} 4.
Nc3 {[%clk 0:03:04.5]} 4... Bg7 {[%clk 0:02:59.6]} 5. e4 {[%clk 0:03:06.1]} 5...
O-O {[%clk 0:03:00.4]} 6. Bd3 {[%clk 0:03:06.9]} 6... e6 {[%clk 0:03:00.9]} 7.
h3 {[%clk 0:03:04]} 7... exd5 {[%clk 0:03:00.7]} 8. exd5 {[%clk 0:03:05.9]} 8...
Re8+ {[%clk 0:02:57.7]} 9. Nge2 {[%clk 0:03:06.3]} 9... d6 {[%clk 0:02:58.1]}
10. O-O {[%clk 0:03:07.3]} 10... Nbd7 {[%clk 0:02:55.1]} 11. f4 {[%clk 0:03:08]}
11... a6 {[%clk 0:02:54.9]} 12. a4 {[%clk 0:03:08.1]} 12... Nh5 {[%clk
0:02:46.5]} 13. g4 {[%clk 0:03:06.4]} 13... Bxc3 {[%clk 0:02:40.3]} 14. Nxc3
{[%clk 0:03:02.3]} 14... Qh4 {[%clk 0:02:37.4]} 15. Rf3 {[%clk 0:02:54.7]} 15...
Re1+ {[%clk 0:02:32.5]} 16. Kg2 {[%clk 0:02:55]} 16... Rxd1 {[%clk 0:02:29.3]}
17. Nxd1 {[%clk 0:02:56.9]} 17... Ng7 {[%clk 0:02:29.2]} 18. Nf2 {[%clk
0:02:53.7]} 18... f5 {[%clk 0:02:23.8]} 19. g5 {[%clk 0:02:54.6]} 19... h6
{[%clk 0:02:18.5]} 20. gxh6 {[%clk 0:02:55.7]} 20... Qxh6 {[%clk 0:02:17.1]} 21.
Bd2 {[%clk 0:02:56.2]} 21... Nf6 {[%clk 0:02:17.9]} 22. a5 {[%clk 0:02:54.9]}
22... Bd7 {[%clk 0:02:18.5]} 23. b4 {[%clk 0:02:55.4]} 23... Re8 {[%clk
0:02:16.6]} 24. bxc5 {[%clk 0:02:55.2]} 24... dxc5 {[%clk 0:02:17.8]} 25. Rb1
{[%clk 0:02:54.8]} 25... Ne4 {[%clk 0:02:17.8]} 26. Bc1 {[%clk 0:02:44.3]} 26...
Nxf2 {[%clk 0:02:18.1]} 27. Rxf2 {[%clk 0:02:44.8]} 27... Bc8 {[%clk 0:02:17.7]}
28. Bd2 {[%clk 0:02:42.8]} 28... Nh5 {[%clk 0:02:18.2]} 29. Rb6 {[%clk
0:02:40.5]} 29... Qg7 {[%clk 0:02:17.6]} 30. Be2 {[%clk 0:02:38.4]} 30... Kh7
{[%clk 0:02:17.3]} 0-1

[Event "*** Titled Tuesday 3|2 Blitz"]
[Site "Chess.com"]
[Date "2016.04.05"]
[Round "1"]
[White "alturas_pacificas"]
[Black "jk13"]
[Result "0-1"]
[WhiteElo "2095"]
[BlackElo "2435"]
[TimeControl "180+2"]
[EndTime "11:03:56 PDT"]
[Termination "jk13 won by resignation"]

1. d4 {[%clk 0:03:00.2]} 1... Nf6 {[%clk 0:02:59.1]} 2. Bf4 {[%clk 0:03:00.7]}
2... e6 {[%clk 0:02:59.8]} 3. e3 {[%clk 0:03:01.9]} 3... d5 {[%clk 0:03:01.2]}
4. Nd2 {[%clk 0:03:02.8]} 4... c5 {[%clk 0:03:02.8]} 5. c3 {[%clk 0:03:03.6]}
5... Nc6 {[%clk 0:03:04.4]} 6. Ngf3 {[%clk 0:03:04.4]} 6... Bd6 {[%clk
0:03:05.9]} 7. Bg3 {[%clk 0:03:05.5]} 7... O-O {[%clk 0:03:03.7]} 8. Bd3 {[%clk
0:03:05.7]} 8... b6 {[%clk 0:03:05.2]} 9. Ne5 {[%clk 0:03:05.5]} 9... Bb7 {[%clk
0:03:05.3]} 10. f4 {[%clk 0:03:02.6]} 10... Ne7 {[%clk 0:03:05.5]} 11. Qf3
{[%clk 0:03:02.4]} 11... Nf5 {[%clk 0:03:05.8]} 12. Bf2 {[%clk 0:03:01]} 12...
Be7 {[%clk 0:03:06.6]} 13. Bxf5 {[%clk 0:03:02.1]} 13... exf5 {[%clk 0:03:07.2]}
14. g4 {[%clk 0:02:56.3]} 14... fxg4 {[%clk 0:02:54.1]} 15. Nxg4 {[%clk
0:02:57.2]} 15... Nxg4 {[%clk 0:02:55.1]} 16. Qxg4 {[%clk 0:02:58.3]} 16... Bf6
{[%clk 0:02:56]} 17. O-O-O {[%clk 0:02:52.9]} 17... Bc8 {[%clk 0:02:54.7]} 18.
Qg2 {[%clk 0:02:47.5]} 18... Bf5 {[%clk 0:02:55.2]} 19. Nf3 {[%clk 0:02:42]}
19... Be4 {[%clk 0:02:54.1]} 20. Qg3 {[%clk 0:02:42.1]} 20... Qe8 {[%clk
0:02:53.5]} 21. Rhg1 {[%clk 0:02:39.8]} 21... Qa4 {[%clk 0:02:53]} 22. Rd2
{[%clk 0:02:19.7]} 22... Qxa2 {[%clk 0:02:53.1]} 23. Kd1 {[%clk 0:02:21.1]}
23... Qa1+ {[%clk 0:02:43]} 24. Ke2 {[%clk 0:02:21.9]} 24... Qa6+ {[%clk
0:02:44.9]} 25. Kd1 {[%clk 0:02:19.1]} 25... Qa4+ {[%clk 0:02:43.9]} 26. Ke2
{[%clk 0:02:19]} 26... Qb5+ {[%clk 0:02:42.6]} 27. Kd1 {[%clk 0:02:20]} 27...
cxd4 {[%clk 0:02:34.7]} 28. exd4 {[%clk 0:02:20.3]} 28... Bxf3+ {[%clk
0:02:31.8]} 29. Qxf3 {[%clk 0:02:18]} 29... Rfe8 {[%clk 0:02:30]} 30. Re1 {[%clk
0:02:15.2]} 30... Qa4+ {[%clk 0:02:25.1]} 0-1

[Event "*** Titled Tuesday 3|2 Blitz"]
[Site "Chess.com"]
[Date "2016.04.05"]
[Round "1"]
[White "Janosik"]
[Black "MateusViageiro"]
[Result "1-0"]
[WhiteElo "2573"]
[BlackElo "2265"]
[TimeControl "180+2"]
[EndTime "11:05:12 PDT"]
[Termination "Janosik won by resignation"]

1. d4 {[%clk 0:03:01.9]} 1... Nf6 {[%clk 0:02:59.9]} 2. c4 {[%clk 0:03:03.5]}
2... e6 {[%clk 0:03:01.3]} 3. Nc3 {[%clk 0:03:04.8]} 3... Bb4 {[%clk 0:03:02.2]}
4. Qc2 {[%clk 0:03:06.5]} 4... O-O {[%clk 0:03:02.3]} 5. Nf3 {[%clk 0:03:07.9]}
5... b6 {[%clk 0:03:03.3]} 6. e4 {[%clk 0:03:09.6]} 6... Bb7 {[%clk 0:03:03]} 7.
e5 {[%clk 0:03:09.4]} 7... Ne4 {[%clk 0:03:00.5]} 8. Bd3 {[%clk 0:03:10.5]} 8...
f5 {[%clk 0:03:00.8]} 9. O-O {[%clk 0:03:04.1]} 9... Nxc3 {[%clk 0:02:54.9]} 10.
bxc3 {[%clk 0:03:06]} 10... Be7 {[%clk 0:02:51.4]} 11. d5 {[%clk 0:03:07]} 11...
g6 {[%clk 0:02:43.5]} 12. Bh6 {[%clk 0:03:03.9]} 12... Rf7 {[%clk 0:02:40.1]}
13. Nd4 {[%clk 0:02:37.8]} 13... exd5 {[%clk 0:02:29]} 14. e6 {[%clk 0:02:35]}
14... dxe6 {[%clk 0:02:26.8]} 15. Nxe6 {[%clk 0:02:36.9]} 15... Qd7 {[%clk
0:02:18.5]} 16. Rfe1 {[%clk 0:02:38.2]} 16... Na6 {[%clk 0:02:00.9]} 17. cxd5
{[%clk 0:02:37.1]} 17... Qxd5 {[%clk 0:01:55.3]} 18. Nf4 {[%clk 0:02:37.9]}
18... Qc5 {[%clk 0:01:49.4]} 19. Qb3 {[%clk 0:02:36.2]} 19... g5 {[%clk
0:01:35.1]} 20. Bc4 {[%clk 0:02:29.2]} 20... gxf4 {[%clk 0:01:26.8]} 21. Bxf7+
{[%clk 0:02:29.9]} 21... Kh8 {[%clk 0:01:27]} 22. Qe6 {[%clk 0:02:31.8]} 22...
Qd6 {[%clk 0:01:02]} 23. Qxe7 {[%clk 0:02:10.7]} 23... Qxh6 {[%clk 0:00:59]} 24.
Rad1 {[%clk 0:02:12.3]} 24... Qc6 {[%clk 0:00:51.2]} 25. Qe5+ {[%clk 0:02:09.7]}
1-0

[Event "*** Titled Tuesday 3|2 Blitz"]
[Site "Chess.com"]
[Date "2016.04.05"]
[Round "1"]
[White "Aygehovit1992"]
[Black "FearlessKing64"]
[Result "1-0"]
[WhiteElo "2445"]
[BlackElo "2110"]
[TimeControl "180+2"]
[EndTime "11:05:19 PDT"]
[Termination "Aygehovit1992 won by checkmate"]

1. e4 {[%clk 0:03:01.9]} 1... c5 {[%clk 0:02:59.5]} 2. Nf3 {[%clk 0:03:02.9]}
2... d6 {[%clk 0:03:00.6]} 3. d4 {[%clk 0:03:04]} 3... cxd4 {[%clk 0:03:02.5]}
4. Nxd4 {[%clk 0:03:05.7]} 4... Nf6 {[%clk 0:03:03.7]} 5. Nc3 {[%clk 0:03:07.4]}
5... a6 {[%clk 0:03:05.1]} 6. h3 {[%clk 0:03:08.5]} 6... g6 {[%clk 0:03:04.4]}
7. g4 {[%clk 0:03:09.2]} 7... Bg7 {[%clk 0:03:05.4]} 8. Bg2 {[%clk 0:03:10.3]}
8... O-O {[%clk 0:03:04.6]} 9. Be3 {[%clk 0:03:11.3]} 9... Nc6 {[%clk
0:02:59.9]} 10. Qd2 {[%clk 0:03:11.4]} 10... Nxd4 {[%clk 0:02:49]} 11. Bxd4
{[%clk 0:03:12.3]} 11... Be6 {[%clk 0:02:50.2]} 12. f4 {[%clk 0:03:12.2]} 12...
Rc8 {[%clk 0:02:45.9]} 13. f5 {[%clk 0:03:13.2]} 13... Bc4 {[%clk 0:02:42.8]}
14. b3 {[%clk 0:03:12.3]} 14... Bb5 {[%clk 0:02:40]} 15. Nxb5 {[%clk 0:03:11]}
15... axb5 {[%clk 0:02:40.3]} 16. O-O {[%clk 0:03:09.7]} 16... Qc7 {[%clk
0:02:36.1]} 17. Rf2 {[%clk 0:03:08.4]} 17... Rfd8 {[%clk 0:02:31.6]} 18. Raf1
{[%clk 0:03:07.5]} 18... d5 {[%clk 0:01:56.2]} 19. exd5 {[%clk 0:02:47.3]} 19...
Nxd5 {[%clk 0:01:43.9]} 20. Bxg7 {[%clk 0:02:46.1]} 20... Kxg7 {[%clk
0:00:53.9]} 21. Bxd5 {[%clk 0:02:45.1]} 21... Qg3+ {[%clk 0:00:27.1]} 22. Rg2
{[%clk 0:02:44.8]} 22... Qxh3 {[%clk 0:00:27.4]} 23. fxg6 {[%clk 0:02:44.1]}
23... e6 {[%clk 0:00:21.3]} 24. Rxf7+ {[%clk 0:02:43.2]} 24... Kg8 {[%clk
0:00:21.3]} 25. Qf4 {[%clk 0:02:37.2]} 25... Rxd5 {[%clk 0:00:13.1]} 26. gxh7+
{[%clk 0:02:38.2]} 26... Kh8 {[%clk 0:00:13.5]} 27. Qf6# {[%clk 0:02:39.2]} 1-0

[Event "*** Titled Tuesday 3|2 Blitz"]
[Site "Chess.com"]
[Date "2016.04.05"]
[Round "1"]
[White "Spas_Kozhuharov"]
[Black "AungTZ"]
[Result "1-0"]
[WhiteElo "2477"]
[BlackElo "2133"]
[TimeControl "180+2"]
[EndTime "11:05:46 PDT"]
[Termination "Spas_Kozhuharov won on time"]

1. d4 {[%clk 0:02:18.9]} 1... Nf6 {[%clk 0:02:59.4]} 2. c4 {[%clk 0:02:19.9]}
2... e6 {[%clk 0:03:00]} 3. Nc3 {[%clk 0:02:20.8]} 3... Bb4 {[%clk 0:03:00.2]}
4. Qc2 {[%clk 0:02:22.2]} 4... b6 {[%clk 0:02:55.9]} 5. e4 {[%clk 0:02:21.6]}
5... Bxc3+ {[%clk 0:02:47.1]} 6. bxc3 {[%clk 0:02:21.8]} 6... d6 {[%clk
0:02:46.6]} 7. f4 {[%clk 0:02:21.2]} 7... Bb7 {[%clk 0:02:34.8]} 8. Bd3 {[%clk
0:02:20.1]} 8... e5 {[%clk 0:02:29.8]} 9. Nf3 {[%clk 0:02:18.8]} 9... Nbd7
{[%clk 0:01:55.4]} 10. O-O {[%clk 0:02:15.4]} 10... O-O {[%clk 0:01:53.7]} 11.
fxe5 {[%clk 0:02:13.2]} 11... dxe5 {[%clk 0:01:54.3]} 12. Bg5 {[%clk 0:02:13.8]}
12... Qe8 {[%clk 0:01:19.9]} 13. Rae1 {[%clk 0:02:07.7]} 13... Kh8 {[%clk
0:01:17.5]} 14. Qf2 {[%clk 0:01:49]} 14... exd4 {[%clk 0:00:38]} 15. e5 {[%clk
0:01:48.9]} 15... Ng8 {[%clk 0:00:30.9]} 16. cxd4 {[%clk 0:01:48.4]} 16... Bxf3
{[%clk 0:00:13.5]} 17. Qxf3 {[%clk 0:01:45.6]} 17... Qe6 {[%clk 0:00:15.4]} 18.
d5 {[%clk 0:01:40.6]} 1-0

[Event "*** Titled Tuesday 3|2 Blitz"]
[Site "Chess.com"]
[Date "2016.04.05"]
[Round "1"]
[White "amaidel"]
[Black "PowerThinking2650"]
[Result "1-0"]
[WhiteElo "2460"]
[BlackElo "2116"]
[TimeControl "180+2"]
[EndTime "11:05:56 PDT"]
[Termination "amaidel won by resignation"]

1. e4 {[%clk 0:03:01.9]} 1... e5 {[%clk 0:03:00.1]} 2. Nf3 {[%clk 0:03:02.6]}
2... Nc6 {[%clk 0:02:59.8]} 3. Nc3 {[%clk 0:03:03.8]} 3... Nf6 {[%clk
0:02:58.4]} 4. g3 {[%clk 0:03:05]} 4... d5 {[%clk 0:02:57]} 5. exd5 {[%clk
0:03:05.8]} 5... Nxd5 {[%clk 0:02:57.5]} 6. Bg2 {[%clk 0:03:06.9]} 6... Nxc3
{[%clk 0:02:56]} 7. bxc3 {[%clk 0:03:07.4]} 7... Bd6 {[%clk 0:02:49.3]} 8. O-O
{[%clk 0:03:07.9]} 8... O-O {[%clk 0:02:49.8]} 9. Re1 {[%clk 0:03:08.4]} 9...
Bg4 {[%clk 0:02:46.9]} 10. h3 {[%clk 0:03:08.9]} 10... Bh5 {[%clk 0:02:47.3]}
11. g4 {[%clk 0:03:09.1]} 11... Bg6 {[%clk 0:02:46.8]} 12. d3 {[%clk 0:03:10.1]}
12... f5 {[%clk 0:02:41.1]} 13. Ng5 {[%clk 0:03:10.2]} 13... Qd7 {[%clk
0:02:13.1]} 14. Rb1 {[%clk 0:03:09.9]} 14... e4 {[%clk 0:01:55.9]} 15. dxe4
{[%clk 0:03:02.5]} 15... fxg4 {[%clk 0:01:45.2]} 16. Qxg4 {[%clk 0:02:57.6]}
16... Qxg4 {[%clk 0:01:32.4]} 17. hxg4 {[%clk 0:02:59.5]} 17... Ne5 {[%clk
0:01:14.1]} 18. Rxb7 {[%clk 0:02:15]} 18... Nxg4 {[%clk 0:01:08]} 19. f3 {[%clk
0:01:44.9]} 19... Bc5+ {[%clk 0:01:02.9]} 20. Kh1 {[%clk 0:01:42]} 20... Nf2+
{[%clk 0:00:47.7]} 21. Kh2 {[%clk 0:01:41.7]} 21... h6 {[%clk 0:00:33.7]} 22.
Ne6 {[%clk 0:01:42.3]} 22... Bb6 {[%clk 0:00:32]} 23. Nxf8 {[%clk 0:01:42.9]}
23... Rxf8 {[%clk 0:00:32.6]} 24. Be3 {[%clk 0:01:43.6]} 1-0

[Event "*** Titled Tuesday 3|2 Blitz"]
[Site "Chess.com"]
[Date "2016.04.05"]
[Round "1"]
[White "Canairez"]
[Black "Dlugy"]
[Result "1-0"]
[WhiteElo "2334"]
[BlackElo "2599"]
[TimeControl "180+2"]
[EndTime "11:06:27 PDT"]
[Termination "Canairez won by resignation"]

1. d4 {[%clk 0:03:01.9]} 1... d5 {[%clk 0:03:00.7]} 2. c4 {[%clk 0:03:03.8]}
2... dxc4 {[%clk 0:03:01.8]} 3. e3 {[%clk 0:03:03.4]} 3... e6 {[%clk 0:03:01.5]}
4. Bxc4 {[%clk 0:03:04.6]} 4... a6 {[%clk 0:03:03.4]} 5. Nf3 {[%clk 0:03:05.7]}
5... c5 {[%clk 0:03:05]} 6. O-O {[%clk 0:03:06.5]} 6... Nf6 {[%clk 0:03:05.6]}
7. Nc3 {[%clk 0:03:06.9]} 7... b5 {[%clk 0:03:05.9]} 8. Bb3 {[%clk 0:03:05.7]}
8... Bb7 {[%clk 0:03:07.4]} 9. Re1 {[%clk 0:02:33.2]} 9... Be7 {[%clk
0:02:55.3]} 10. Bc2 {[%clk 0:02:05]} 10... O-O {[%clk 0:02:53.7]} 11. e4 {[%clk
0:02:06.3]} 11... cxd4 {[%clk 0:02:53.1]} 12. Nxd4 {[%clk 0:02:06]} 12... b4
{[%clk 0:02:47.2]} 13. Na4 {[%clk 0:02:02.8]} 13... Nc6 {[%clk 0:02:47.6]} 14.
Be3 {[%clk 0:02:00.5]} 14... Ne5 {[%clk 0:02:30.7]} 15. f3 {[%clk 0:01:54]}
15... Rc8 {[%clk 0:02:24.8]} 16. Rc1 {[%clk 0:01:54.8]} 16... Qa5 {[%clk
0:02:22.5]} 17. Qe2 {[%clk 0:01:45.9]} 17... Rfd8 {[%clk 0:02:16.7]} 18. Bb3
{[%clk 0:01:44.7]} 18... h6 {[%clk 0:01:54]} 19. Red1 {[%clk 0:01:43.5]} 19...
Rxc1 {[%clk 0:01:52.9]} 20. Rxc1 {[%clk 0:01:44.3]} 20... Nfd7 {[%clk
0:01:46.1]} 21. h3 {[%clk 0:01:38.1]} 21... Bf6 {[%clk 0:01:22.3]} 22. f4 {[%clk
0:01:32.5]} 22... Ng6 {[%clk 0:01:22.9]} 23. e5 {[%clk 0:01:29.6]} 23... Be7
{[%clk 0:01:19.8]} 24. Nc6 {[%clk 0:01:22.7]} 24... Bxc6 {[%clk 0:01:20.4]} 25.
Rxc6 {[%clk 0:01:24.6]} 25... Qb5 {[%clk 0:01:14.2]} 26. Qxb5 {[%clk 0:01:18.7]}
26... axb5 {[%clk 0:01:15.4]} 27. Nb6 {[%clk 0:01:19.8]} 27... Nxb6 {[%clk
0:01:12.1]} 28. Rxb6 {[%clk 0:01:21.7]} 28... Rd3 {[%clk 0:01:08.8]} 29. Kf2
{[%clk 0:01:11.4]} 29... Nh4 {[%clk 0:01:03.6]} 30. Rb8+ {[%clk 0:01:05.9]}
30... Kh7 {[%clk 0:01:01.8]} 31. Bc2 {[%clk 0:01:06]} 1-0

[Event "*** Titled Tuesday 3|2 Blitz"]
[Site "Chess.com"]
[Date "2016.04.05"]
[Round "1"]
[White "wonderfultime"]
[Black "HZMC92"]
[Result "1-0"]
[WhiteElo "2619"]
[BlackElo "2319"]
[TimeControl "180+2"]
[EndTime "11:06:44 PDT"]
[Termination "wonderfultime won by resignation"]

1. d4 {[%clk 0:01:24.9]} 1... d5 {[%clk 0:03:00.8]} 2. c4 {[%clk 0:01:26.1]}
2... e6 {[%clk 0:03:02.1]} 3. Nc3 {[%clk 0:01:27.2]} 3... c6 {[%clk 0:03:03.4]}
4. Nf3 {[%clk 0:01:28.2]} 4... dxc4 {[%clk 0:03:04.4]} 5. a4 {[%clk 0:01:25]}
5... Bb4 {[%clk 0:03:05.2]} 6. e3 {[%clk 0:01:19.6]} 6... b5 {[%clk 0:03:06.4]}
7. Ne5 {[%clk 0:01:20.5]} 7... Nf6 {[%clk 0:03:03.5]} 8. Bd2 {[%clk 0:00:57.5]}
8... O-O {[%clk 0:02:58.6]} 9. Be2 {[%clk 0:00:56.4]} 9... a5 {[%clk 0:02:59.2]}
10. O-O {[%clk 0:00:55.6]} 10... Qc7 {[%clk 0:02:40.7]} 11. axb5 {[%clk
0:00:53.7]} 11... Bxc3 {[%clk 0:02:40.9]} 12. b6 {[%clk 0:00:55.3]} 12... Qxb6
{[%clk 0:02:40.5]} 13. Bxc3 {[%clk 0:00:56.3]} 13... Nbd7 {[%clk 0:02:41.5]} 14.
Nxc4 {[%clk 0:00:57.4]} 14... Qb8 {[%clk 0:02:38.5]} 15. Rxa5 {[%clk 0:00:58.3]}
15... Nd5 {[%clk 0:02:34.6]} 16. Rxa8 {[%clk 0:00:56.4]} 16... Qxa8 {[%clk
0:02:36.5]} 17. Bd2 {[%clk 0:00:58.1]} 17... Ba6 {[%clk 0:02:32.1]} 18. Qc2
{[%clk 0:00:58.4]} 18... Qb7 {[%clk 0:02:24.2]} 19. Na5 {[%clk 0:00:47.1]} 19...
Qb6 {[%clk 0:02:20.6]} 20. Bxa6 {[%clk 0:00:48.2]} 20... Qxa6 {[%clk 0:02:22.5]}
21. Qxc6 {[%clk 0:00:50.1]} 21... Qxc6 {[%clk 0:02:18.3]} 22. Nxc6 {[%clk
0:00:52]} 22... Rc8 {[%clk 0:02:19.8]} 23. Nb4 {[%clk 0:00:53.3]} 23... N7b6
{[%clk 0:02:16.9]} 24. Nxd5 {[%clk 0:00:48.1]} 24... exd5 {[%clk 0:02:16.2]} 25.
Rc1 {[%clk 0:00:49.6]} 25... Rb8 {[%clk 0:02:15.7]} 26. b3 {[%clk 0:00:49.3]}
26... g6 {[%clk 0:02:16.5]} 27. f3 {[%clk 0:00:49]} 27... h6 {[%clk 0:02:14.3]}
28. Kf2 {[%clk 0:00:50.4]} 28... Kg7 {[%clk 0:02:15.4]} 29. e4 {[%clk
0:00:51.5]} 29... Re8 {[%clk 0:02:08.5]} 30. Rc6 {[%clk 0:00:51]} 30... Rb8
{[%clk 0:02:03.8]} 31. Bf4 {[%clk 0:00:52.2]} 31... Rb7 {[%clk 0:02:05.2]} 32.
Rc7 {[%clk 0:00:47.4]} 32... Rxc7 {[%clk 0:02:02.5]} 33. Bxc7 {[%clk 0:00:49.3]}
33... Nd7 {[%clk 0:01:41.8]} 34. b4 {[%clk 0:00:49.9]} 34... Kf6 {[%clk
0:01:43]} 35. b5 {[%clk 0:00:50.9]} 35... Ke6 {[%clk 0:01:42.2]} 36. b6 {[%clk
0:00:52.2]} 36... dxe4 {[%clk 0:01:38]} 37. fxe4 {[%clk 0:00:52.7]} 37... f5
{[%clk 0:01:38.7]} 38. d5+ {[%clk 0:00:54.1]} 38... Ke7 {[%clk 0:01:37.9]} 39.
e5 {[%clk 0:00:56]} 39... g5 {[%clk 0:01:37]} 40. b7 {[%clk 0:00:57.1]} 40... f4
{[%clk 0:01:37.6]} 41. e6 {[%clk 0:00:58.6]} 1-0

[Event "*** Titled Tuesday 3|2 Blitz"]
[Site "Chess.com"]
[Date "2016.04.05"]
[Round "1"]
[White "cheese111"]
[Black "dretch"]
[Result "0-1"]
[WhiteElo "2294"]
[BlackElo "2598"]
[TimeControl "180+2"]
[EndTime "11:06:48 PDT"]
[Termination "dretch won by resignation"]

1. e4 {[%clk 0:03:01.9]} 1... e6 {[%clk 0:03:00.8]} 2. d3 {[%clk 0:02:59.6]}
2... d5 {[%clk 0:03:01.2]} 3. Qe2 {[%clk 0:03:00.5]} 3... Nc6 {[%clk 0:03:00.9]}
4. Nf3 {[%clk 0:03:00.7]} 4... e5 {[%clk 0:03:01.3]} 5. exd5 {[%clk 0:02:55.4]}
5... Qxd5 {[%clk 0:03:02.5]} 6. Nc3 {[%clk 0:02:56]} 6... Bb4 {[%clk 0:03:03.6]}
7. Bd2 {[%clk 0:02:51.8]} 7... Bxc3 {[%clk 0:03:04.5]} 8. Bxc3 {[%clk 0:02:50]}
8... Bg4 {[%clk 0:03:05.7]} 9. Rg1 {[%clk 0:01:53.4]} 9... Nge7 {[%clk 0:02:50]}
10. Qe3 {[%clk 0:01:07.1]} 10... Bxf3 {[%clk 0:02:32.7]} 11. Qxf3 {[%clk
0:00:45.1]} 11... Qxf3 {[%clk 0:02:31.3]} 12. gxf3 {[%clk 0:00:47]} 12... Ng6
{[%clk 0:01:44.6]} 13. O-O-O {[%clk 0:00:22.1]} 13... O-O {[%clk 0:01:41.9]} 14.
Re1 {[%clk 0:00:19.9]} 14... Rad8 {[%clk 0:01:38.8]} 15. Bh3 {[%clk 0:00:19]}
15... Nf4 {[%clk 0:01:36.9]} 16. Bf5 {[%clk 0:00:19]} 16... Nd4 {[%clk
0:01:19.3]} 17. Be4 {[%clk 0:00:19.2]} 17... Nfe2+ {[%clk 0:01:16.7]} 18. Kd2
{[%clk 0:00:18.4]} 18... Nxg1 {[%clk 0:01:16.2]} 19. Rxg1 {[%clk 0:00:20.3]}
19... c6 {[%clk 0:01:13.8]} 20. f4 {[%clk 0:00:15.2]} 20... f5 {[%clk
0:01:12.4]} 21. Bh1 {[%clk 0:00:13.9]} 21... exf4 {[%clk 0:01:11.7]} 22. Re1
{[%clk 0:00:13.4]} 22... Kf7 {[%clk 0:01:09]} 23. Bb4 {[%clk 0:00:10.4]} 23...
Rfe8 {[%clk 0:01:09]} 24. Rxe8 {[%clk 0:00:08.7]} 24... Rxe8 {[%clk 0:01:10.3]}
25. c3 {[%clk 0:00:10.3]} 25... Re2+ {[%clk 0:01:08.9]} 26. Kd1 {[%clk
0:00:10.4]} 26... Rxf2 {[%clk 0:01:09.5]} 0-1

[Event "*** Titled Tuesday 3|2 Blitz"]
[Site "Chess.com"]
[Date "2016.04.05"]
[Round "1"]
[White "Cecile_Haussernot"]
[Black "jncool68"]
[Result "1/2-1/2"]
[WhiteElo "2165"]
[BlackElo "2496"]
[TimeControl "180+2"]
[EndTime "11:07:02 PDT"]
[Termination "Game drawn by repetition"]

1. e4 {[%clk 0:02:56.5]} 1... c5 {[%clk 0:02:59.6]} 2. Nf3 {[%clk 0:02:50.3]}
2... d6 {[%clk 0:02:54.8]} 3. d4 {[%clk 0:02:51.6]} 3... cxd4 {[%clk 0:02:56.2]}
4. Nxd4 {[%clk 0:02:52.9]} 4... Nf6 {[%clk 0:02:57.8]} 5. Nc3 {[%clk 0:02:54]}
5... e6 {[%clk 0:02:58.9]} 6. g4 {[%clk 0:02:48.8]} 6... h6 {[%clk 0:02:58.4]}
7. Bg2 {[%clk 0:02:39.9]} 7... Nc6 {[%clk 0:02:59.1]} 8. O-O {[%clk 0:02:41.2]}
8... Nxd4 {[%clk 0:02:57.9]} 9. Qxd4 {[%clk 0:02:42.3]} 9... Nxg4 {[%clk
0:02:59]} 10. f4 {[%clk 0:02:42.2]} 10... Be7 {[%clk 0:02:46.4]} 11. h3 {[%clk
0:02:40.4]} 11... Nf6 {[%clk 0:02:46.3]} 12. Be3 {[%clk 0:02:35.8]} 12... O-O
{[%clk 0:02:46]} 13. f5 {[%clk 0:02:36.4]} 13... e5 {[%clk 0:02:45.9]} 14. Qd2
{[%clk 0:02:36.8]} 14... b6 {[%clk 0:02:46]} 15. Rf3 {[%clk 0:02:37.9]} 15...
Nh5 {[%clk 0:02:37.4]} 16. Bxh6 {[%clk 0:02:31.4]} 16... Nf4 {[%clk 0:02:34.9]}
17. Rg3 {[%clk 0:02:27.3]} 17... Bf6 {[%clk 0:02:29.3]} 18. Nd5 {[%clk
0:02:14.6]} 18... Nxd5 {[%clk 0:02:30.2]} 19. exd5 {[%clk 0:02:14.3]} 19... Kh8
{[%clk 0:02:29.8]} 20. Rf1 {[%clk 0:02:14.1]} 20... Ba6 {[%clk 0:02:24.2]} 21.
Bxg7+ {[%clk 0:02:13.5]} 21... Bxg7 {[%clk 0:02:19.9]} 22. f6 {[%clk 0:02:15]}
22... Rg8 {[%clk 0:02:16.6]} 23. Qg5 {[%clk 0:02:15.3]} 23... Qf8 {[%clk
0:02:11.2]} 24. fxg7+ {[%clk 0:01:55.7]} 24... Rxg7 {[%clk 0:02:12]} 25. Qh6+
{[%clk 0:01:55.2]} 25... Kg8 {[%clk 0:02:13.2]} 26. Rff3 {[%clk 0:01:49.2]}
26... e4 {[%clk 0:01:44.7]} 27. Ra3 {[%clk 0:01:43.9]} 27... Be2 {[%clk
0:01:37.6]} 28. Kh2 {[%clk 0:01:40.6]} 28... Bf3 {[%clk 0:01:38]} 29. Rg5 {[%clk
0:00:54.7]} 29... Rxg5 {[%clk 0:01:30.4]} 30. Qxg5+ {[%clk 0:00:55.7]} 30... Qg7
{[%clk 0:01:32.1]} 31. Qxg7+ {[%clk 0:00:56.9]} 31... Kxg7 {[%clk 0:01:34]} 32.
Bxf3 {[%clk 0:00:58.5]} 32... exf3 {[%clk 0:01:35.9]} 33. Rxf3 {[%clk
0:00:59.8]} 33... Rc8 {[%clk 0:01:37.5]} 34. c3 {[%clk 0:00:59.6]} 34... Rc5
{[%clk 0:01:37.6]} 35. Rd3 {[%clk 0:01:00.7]} 35... b5 {[%clk 0:01:38.5]} 36.
Kg3 {[%clk 0:01:02.6]} 36... a5 {[%clk 0:01:39.7]} 37. Kf4 {[%clk 0:01:03.3]}
37... Kf6 {[%clk 0:01:40.4]} 38. Ke4 {[%clk 0:01:04.3]} 38... Rc4+ {[%clk
0:01:41.6]} 39. Rd4 {[%clk 0:00:57.4]} 39... Rc8 {[%clk 0:01:42.5]} 40. Rd1
{[%clk 0:00:55.4]} 40... Rh8 {[%clk 0:01:41.8]} 41. Rf1+ {[%clk 0:00:55.6]}
41... Ke7 {[%clk 0:01:42.8]} 42. Rf3 {[%clk 0:00:56.2]} 42... Rh4+ {[%clk
0:01:43.8]} 43. Kf5 {[%clk 0:00:56.4]} 43... Rh5+ {[%clk 0:01:44.4]} 44. Ke4
{[%clk 0:00:57.2]} 44... Rh4+ {[%clk 0:01:45.7]} 45. Kf5 {[%clk 0:00:58.1]}
45... Rh5+ {[%clk 0:01:46.8]} 46. Ke4 {[%clk 0:00:59.2]} 46... Rh4+ {[%clk
0:01:47.7]} 47. Kf5 {[%clk 0:01:00]} 1/2-1/2